[Event "Late-Titled-Tuesday-Blitz-March-05-2024"]
[Site "Chess.com"]
[Date "2024.03.05"]
[Round "1"]
[White "pirulillo"]
[Black "Ajedrez_con_German"]
[Result "0-1"]
[WhiteElo "2242"]
[BlackElo "2587"]
[TimeControl "180+1"]
[EndTime "14:07:13 PST"]
[Termination "Ajedrez_con_German won on time"]

1. e4 {[%clk 0:02:46.3]} 1... e6 {[%clk 0:02:59.2]} 2. d3 {[%clk 0:02:45.3]}
2... c5 {[%clk 0:02:59.2]} 3. Nf3 {[%clk 0:02:45.1]} 3... Nc6 {[%clk 0:02:59.7]}
4. g3 {[%clk 0:02:45]} 4... g6 {[%clk 0:03:00.2]} 5. Bg2 {[%clk 0:02:42]} 5...
Bg7 {[%clk 0:03:00.9]} 6. O-O {[%clk 0:02:37.8]} 6... Nge7 {[%clk 0:03:00.7]} 7.
c3 {[%clk 0:02:34.2]} 7... d6 {[%clk 0:03:01.2]} 8. d4 {[%clk 0:02:29]} 8...
cxd4 {[%clk 0:03:00.9]} 9. cxd4 {[%clk 0:02:18]} 9... d5 {[%clk 0:03:01.3]} 10.
e5 {[%clk 0:02:12.5]} 10... O-O {[%clk 0:03:00.9]} 11. Nc3 {[%clk 0:02:11.9]}
11... Nf5 {[%clk 0:02:58.5]} 12. h4 {[%clk 0:02:10.7]} 12... Bd7 {[%clk
0:02:51.1]} 13. Bg5 {[%clk 0:01:39.8]} 13... Qa5 {[%clk 0:02:48.3]} 14. Qd2
{[%clk 0:01:33.3]} 14... Qb4 {[%clk 0:02:29.5]} 15. Rad1 {[%clk 0:01:29.3]}
15... Na5 {[%clk 0:02:27.2]} 16. Nxd5 {[%clk 0:01:17.9]} 16... Qxd2 {[%clk
0:02:23.4]} 17. Bxd2 {[%clk 0:01:16.2]} 17... Nc4 {[%clk 0:02:14.7]} 18. Nf6+
{[%clk 0:01:11.8]} 18... Bxf6 {[%clk 0:02:11.7]} 19. exf6 {[%clk 0:01:11.7]}
19... Nxb2 {[%clk 0:02:00.6]} 20. Rb1 {[%clk 0:01:09.9]} 20... Nc4 {[%clk
0:02:01]} 21. Rxb7 {[%clk 0:01:07.8]} 21... Bc6 {[%clk 0:02:01.1]} 22. Rc7
{[%clk 0:01:07.3]} 22... Nxd2 {[%clk 0:01:44]} 23. Nxd2 {[%clk 0:01:00.9]} 23...
Bxg2 {[%clk 0:01:41.3]} 24. Kxg2 {[%clk 0:01:01.8]} 24... Nxd4 {[%clk
0:01:40.7]} 25. Rfc1 {[%clk 0:00:55.8]} 25... Rfd8 {[%clk 0:01:32.8]} 26. Ne4
{[%clk 0:00:52.5]} 26... Nb5 {[%clk 0:01:14.1]} 27. Rb7 {[%clk 0:00:51.8]} 27...
a6 {[%clk 0:01:03.8]} 28. a4 {[%clk 0:00:48.7]} 28... Nd6 {[%clk 0:01:04]} 29.
Nxd6 {[%clk 0:00:44]} 29... Rxd6 {[%clk 0:01:04.9]} 30. Rcc7 {[%clk 0:00:38]}
30... Rf8 {[%clk 0:01:04.9]} 31. g4 {[%clk 0:00:38]} 31... Rd4 {[%clk
0:01:03.6]} 32. g5 {[%clk 0:00:33.7]} 32... Rxh4 {[%clk 0:00:56.2]} 33. Rb6
{[%clk 0:00:22.2]} 33... Rg4+ {[%clk 0:00:53.4]} 34. Kh3 {[%clk 0:00:21.1]}
34... Rxg5 {[%clk 0:00:52.7]} 35. Rxa6 {[%clk 0:00:19.4]} 35... Rf5 {[%clk
0:00:53.1]} 36. Rac6 {[%clk 0:00:17.5]} 36... Rxf6 {[%clk 0:00:48.1]} 37. Kg3
{[%clk 0:00:15.7]} 37... Rf5 {[%clk 0:00:47.5]} 38. f4 {[%clk 0:00:13.6]} 38...
Ra8 {[%clk 0:00:41.5]} 39. Rc8+ {[%clk 0:00:12.1]} 39... Rxc8 {[%clk 0:00:41.4]}
40. Rxc8+ {[%clk 0:00:13]} 40... Kg7 {[%clk 0:00:42.2]} 41. Kg4 {[%clk
0:00:01.1]} 41... e5 {[%clk 0:00:36.5]} 0-1

[Event "Late-Titled-Tuesday-Blitz-March-05-2024"]
[Site "Chess.com"]
[Date "2024.03.05"]
[Round "1"]
[White "czasnaszachy"]
[Black "CarlosjPineror"]
[Result "0-1"]
[WhiteElo "2430"]
[BlackElo "2731"]
[TimeControl "180+1"]
[EndTime "14:07:14 PST"]
[Termination "CarlosjPineror won on time"]

1. e4 {[%clk 0:02:58.8]} 1... c5 {[%clk 0:02:59.3]} 2. Nf3 {[%clk 0:02:58.7]}
2... e6 {[%clk 0:02:59.4]} 3. c3 {[%clk 0:02:57.5]} 3... Nf6 {[%clk 0:02:58.7]}
4. e5 {[%clk 0:02:56]} 4... Nd5 {[%clk 0:02:58.7]} 5. d4 {[%clk 0:02:56.2]} 5...
cxd4 {[%clk 0:02:59.6]} 6. cxd4 {[%clk 0:02:56.1]} 6... b6 {[%clk 0:03:00]} 7.
Bc4 {[%clk 0:02:50.5]} 7... Bb7 {[%clk 0:02:59]} 8. Bxd5 {[%clk 0:02:50.1]} 8...
Bxd5 {[%clk 0:02:58.2]} 9. Nc3 {[%clk 0:02:50.4]} 9... Bb7 {[%clk 0:02:58.7]}
10. d5 {[%clk 0:02:40.6]} 10... h6 {[%clk 0:02:52.6]} 11. d6 {[%clk 0:02:35.5]}
11... g6 {[%clk 0:02:51.9]} 12. h4 {[%clk 0:02:22.4]} 12... Bg7 {[%clk
0:02:47.5]} 13. h5 {[%clk 0:02:22]} 13... g5 {[%clk 0:02:47.3]} 14. Nb5 {[%clk
0:02:05.7]} 14... Na6 {[%clk 0:02:43.1]} 15. Qe2 {[%clk 0:02:03.4]} 15... f6
{[%clk 0:02:17]} 16. exf6 {[%clk 0:01:38.4]} 16... Qxf6 {[%clk 0:02:14.6]} 17.
Bd2 {[%clk 0:01:23.1]} 17... Qxb2 {[%clk 0:02:05.2]} 18. O-O {[%clk 0:01:19.8]}
18... O-O {[%clk 0:01:58.8]} 19. Nc3 {[%clk 0:00:55.1]} 19... Qa3 {[%clk
0:01:28.7]} 20. Ne5 {[%clk 0:00:39.5]} 20... Qxd6 {[%clk 0:01:15.8]} 21. Ng6
{[%clk 0:00:38.1]} 21... Rf7 {[%clk 0:01:02.8]} 22. Ne4 {[%clk 0:00:35.6]} 22...
Qd4 {[%clk 0:00:57.7]} 23. Rae1 {[%clk 0:00:10.9]} 23... Bxe4 {[%clk 0:00:31.7]}
24. Qxe4 {[%clk 0:00:10.9]} 24... Qxe4 {[%clk 0:00:32.1]} 25. Rxe4 {[%clk
0:00:11.2]} 25... Nc5 {[%clk 0:00:32.2]} 26. Re3 {[%clk 0:00:07]} 26... d6
{[%clk 0:00:26.8]} 27. Bb4 {[%clk 0:00:05.3]} 27... Bd4 {[%clk 0:00:22.7]} 28.
Re2 {[%clk 0:00:05.2]} 28... e5 {[%clk 0:00:22.4]} 29. Rd1 {[%clk 0:00:03.4]}
29... Kg7 {[%clk 0:00:21.5]} 30. Kf1 {[%clk 0:00:03]} 30... a5 {[%clk
0:00:19.6]} 31. Bxc5 {[%clk 0:00:02.3]} 31... bxc5 {[%clk 0:00:18.7]} 32. Rb1
{[%clk 0:00:01.1]} 32... Raa7 {[%clk 0:00:18.6]} 33. f3 {[%clk 0:00:01.2]} 33...
Rab7 {[%clk 0:00:18.9]} 34. Ree1 {[%clk 0:00:01.6]} 34... c4 {[%clk 0:00:18.4]}
35. Ke2 {[%clk 0:00:01.5]} 35... c3 {[%clk 0:00:18.6]} 36. Kd3 {[%clk
0:00:01.7]} 36... a4 {[%clk 0:00:17]} 0-1

[Event "Late-Titled-Tuesday-Blitz-March-05-2024"]
[Site "Chess.com"]
[Date "2024.03.05"]
[Round "1"]
[White "Zampronha1971"]
[Black "NoHeThTo"]
[Result "0-1"]
[WhiteElo "2351"]
[BlackElo "2642"]
[TimeControl "180+1"]
[EndTime "14:07:15 PST"]
[Termination "NoHeThTo won on time"]

1. e4 {[%clk 0:02:59.4]} 1... c5 {[%clk 0:02:59.6]} 2. Nf3 {[%clk 0:02:58.5]}
2... d6 {[%clk 0:02:52.6]} 3. d4 {[%clk 0:02:59]} 3... cxd4 {[%clk 0:02:53.5]}
4. Nxd4 {[%clk 0:02:59]} 4... Nf6 {[%clk 0:02:53.7]} 5. Nc3 {[%clk 0:02:59.5]}
5... a6 {[%clk 0:02:53.9]} 6. Bg5 {[%clk 0:02:59.3]} 6... e6 {[%clk 0:02:53.3]}
7. f4 {[%clk 0:02:59.9]} 7... Nbd7 {[%clk 0:02:43.1]} 8. Qf3 {[%clk 0:03:00.1]}
8... Qc7 {[%clk 0:02:43.2]} 9. O-O-O {[%clk 0:03:00.1]} 9... b5 {[%clk
0:02:42.3]} 10. e5 {[%clk 0:02:31]} 10... dxe5 {[%clk 0:01:59]} 11. Ndxb5 {[%clk
0:02:01.4]} 11... axb5 {[%clk 0:01:47.5]} 12. Qxa8 {[%clk 0:02:01.8]} 12... Bc5
{[%clk 0:01:00.3]} 13. Nxb5 {[%clk 0:01:47]} 13... Be3+ {[%clk 0:00:56]} 14. Kb1
{[%clk 0:01:46.2]} 14... Qc5 {[%clk 0:00:45.9]} 15. Qxc8+ {[%clk 0:01:34.5]}
15... Qxc8 {[%clk 0:00:42.8]} 16. Nd6+ {[%clk 0:01:34.9]} 16... Ke7 {[%clk
0:00:43.7]} 17. Nxc8+ {[%clk 0:01:34.3]} 17... Rxc8 {[%clk 0:00:44.6]} 18. fxe5
{[%clk 0:01:16.5]} 18... Bxg5 {[%clk 0:00:42.5]} 19. exf6+ {[%clk 0:01:16.7]}
19... Bxf6 {[%clk 0:00:40.5]} 20. Bd3 {[%clk 0:01:17]} 20... Rb8 {[%clk
0:00:38.4]} 21. b3 {[%clk 0:01:14.9]} 21... h5 {[%clk 0:00:35.4]} 22. Rhf1
{[%clk 0:01:10.6]} 22... Nb6 {[%clk 0:00:33.2]} 23. Bb5 {[%clk 0:00:42.7]} 23...
Nd5 {[%clk 0:00:31.5]} 24. Rxd5 {[%clk 0:00:43.2]} 24... exd5 {[%clk 0:00:31.7]}
25. Be2 {[%clk 0:00:37.7]} 25... h4 {[%clk 0:00:27.8]} 26. a4 {[%clk 0:00:36.2]}
26... Kd6 {[%clk 0:00:26.1]} 27. a5 {[%clk 0:00:35.1]} 27... Kc5 {[%clk
0:00:20.1]} 28. a6 {[%clk 0:00:35]} 28... Re8 {[%clk 0:00:17.1]} 29. Bd3 {[%clk
0:00:31.6]} 29... Bc3 {[%clk 0:00:15.6]} 30. Ka2 {[%clk 0:00:24.9]} 30... f6
{[%clk 0:00:14.7]} 31. Rf4 {[%clk 0:00:19.6]} 31... d4 {[%clk 0:00:14.2]} 32.
Rf1 {[%clk 0:00:18.2]} 32... Kb6 {[%clk 0:00:14]} 33. h3 {[%clk 0:00:17.8]}
33... Re5 {[%clk 0:00:11.5]} 34. Kb1 {[%clk 0:00:17.1]} 34... Ra5 {[%clk
0:00:11.2]} 0-1

[Event "Late-Titled-Tuesday-Blitz-March-05-2024"]
[Site "Chess.com"]
[Date "2024.03.05"]
[Round "1"]
[White "Sjakkerntobi"]
[Black "alexrustemov"]
[Result "0-1"]
[WhiteElo "2471"]
[BlackElo "2805"]
[TimeControl "180+1"]
[EndTime "14:07:16 PST"]
[Termination "alexrustemov won by resignation"]

1. e4 {[%clk 0:03:00.9]} 1... e6 {[%clk 0:03:00.1]} 2. d4 {[%clk 0:03:00.7]}
2... d5 {[%clk 0:03:00.7]} 3. Nc3 {[%clk 0:02:57.6]} 3... dxe4 {[%clk
0:03:01.1]} 4. Nxe4 {[%clk 0:02:58.5]} 4... Bd7 {[%clk 0:03:00.9]} 5. Nf3 {[%clk
0:02:53.9]} 5... Bc6 {[%clk 0:03:01.2]} 6. Bd3 {[%clk 0:02:54.6]} 6... Nd7
{[%clk 0:03:01.5]} 7. Qe2 {[%clk 0:02:54.8]} 7... Ngf6 {[%clk 0:03:01.8]} 8.
Nxf6+ {[%clk 0:02:40.5]} 8... Nxf6 {[%clk 0:03:00.2]} 9. Bg5 {[%clk 0:02:41]}
9... Be7 {[%clk 0:02:55.2]} 10. O-O-O {[%clk 0:02:34.5]} 10... Bxf3 {[%clk
0:02:53.6]} 11. Qxf3 {[%clk 0:02:35.4]} 11... Qd5 {[%clk 0:02:53.1]} 12. Qxd5
{[%clk 0:02:34.5]} 12... Nxd5 {[%clk 0:02:52.2]} 13. h4 {[%clk 0:02:24.9]} 13...
Rd8 {[%clk 0:02:48.5]} 14. c3 {[%clk 0:02:24]} 14... c6 {[%clk 0:02:44]} 15. Kc2
{[%clk 0:02:22.7]} 15... h6 {[%clk 0:02:35.2]} 16. Bd2 {[%clk 0:02:22.6]} 16...
h5 {[%clk 0:02:29.6]} 17. g3 {[%clk 0:02:19.5]} 17... g6 {[%clk 0:02:28.7]} 18.
Bg5 {[%clk 0:02:12.8]} 18... Kd7 {[%clk 0:02:25.8]} 19. Bxe7 {[%clk 0:02:12.1]}
19... Kxe7 {[%clk 0:02:22.6]} 20. a3 {[%clk 0:02:11.9]} 20... Rd6 {[%clk
0:02:20.1]} 21. Rhe1 {[%clk 0:02:11.8]} 21... Nf6 {[%clk 0:02:15.3]} 22. f3
{[%clk 0:01:53.5]} 22... Kd7 {[%clk 0:02:12.6]} 23. Re5 {[%clk 0:01:52.4]} 23...
Kc7 {[%clk 0:02:12.7]} 24. Rh1 {[%clk 0:01:49.9]} 24... Rhd8 {[%clk 0:02:12.7]}
25. Be2 {[%clk 0:01:49.6]} 25... b6 {[%clk 0:02:12.5]} 26. b4 {[%clk 0:01:46.2]}
26... Nd5 {[%clk 0:02:08.1]} 27. Bc4 {[%clk 0:01:19.2]} 27... Ne7 {[%clk
0:02:07.5]} 28. g4 {[%clk 0:01:17.1]} 28... Rh8 {[%clk 0:02:05.5]} 29. gxh5
{[%clk 0:00:25.5]} 29... gxh5 {[%clk 0:02:04.9]} 30. Bd3 {[%clk 0:00:22.1]}
30... Nd5 {[%clk 0:01:56.2]} 31. Rg1 {[%clk 0:00:17.4]} 31... Rd7 {[%clk
0:01:51.7]} 32. Rg7 {[%clk 0:00:17.3]} 32... f6 {[%clk 0:01:48.9]} 33. Rxd7+
{[%clk 0:00:15.9]} 33... Kxd7 {[%clk 0:01:49.8]} 34. Re1 {[%clk 0:00:14.4]}
34... Rg8 {[%clk 0:01:48.6]} 35. c4 {[%clk 0:00:14.9]} 35... Nf4 {[%clk
0:01:45.9]} 36. Be4 {[%clk 0:00:13.3]} 36... f5 {[%clk 0:01:37]} 37. Bd3 {[%clk
0:00:10.5]} 37... Rg3 {[%clk 0:01:37.4]} 38. d5 {[%clk 0:00:07.4]} 38... cxd5
{[%clk 0:01:35.4]} 39. cxd5 {[%clk 0:00:08]} 39... Nxd5 {[%clk 0:01:34.7]} 40.
Bc4 {[%clk 0:00:08.6]} 40... Kd6 {[%clk 0:01:30.8]} 41. Bxd5 {[%clk 0:00:06.2]}
41... Kxd5 {[%clk 0:01:26.9]} 42. Rd1+ {[%clk 0:00:06.4]} 42... Ke5 {[%clk
0:01:23.6]} 43. Rd7 {[%clk 0:00:06.1]} 43... Rxf3 {[%clk 0:01:23.1]} 44. Rxa7
{[%clk 0:00:06.5]} 44... Kf4 {[%clk 0:01:19.1]} 45. a4 {[%clk 0:00:05]} 45... e5
{[%clk 0:01:18.6]} 46. Rb7 {[%clk 0:00:04.2]} 46... Ra3 {[%clk 0:01:17.7]} 47.
Ra7 {[%clk 0:00:02.8]} 47... e4 {[%clk 0:01:16.2]} 48. Kb2 {[%clk 0:00:03.4]}
48... Rd3 {[%clk 0:01:14.8]} 49. Rb7 {[%clk 0:00:04.1]} 49... Rd6 {[%clk
0:01:14.5]} 50. a5 {[%clk 0:00:03.4]} 50... bxa5 {[%clk 0:01:14.1]} 51. bxa5
{[%clk 0:00:04]} 51... e3 {[%clk 0:01:14.4]} 52. Re7 {[%clk 0:00:03.9]} 52...
Kf3 {[%clk 0:01:12.5]} 53. Kc3 {[%clk 0:00:03.9]} 53... f4 {[%clk 0:01:11.8]}
54. Kc4 {[%clk 0:00:04.5]} 54... Ke2 {[%clk 0:01:11.4]} 55. Kc5 {[%clk 0:00:05]}
55... Rd1 {[%clk 0:01:10]} 56. Re4 {[%clk 0:00:03.6]} 56... f3 {[%clk 0:01:08]}
57. Rd4 {[%clk 0:00:03.1]} 57... Rxd4 {[%clk 0:01:05.6]} 58. Kxd4 {[%clk
0:00:04]} 58... f2 {[%clk 0:01:05.5]} 59. a6 {[%clk 0:00:04.9]} 59... f1=Q
{[%clk 0:01:05.6]} 60. a7 {[%clk 0:00:05.8]} 0-1

[Event "Late-Titled-Tuesday-Blitz-March-05-2024"]
[Site "Chess.com"]
[Date "2024.03.05"]
[Round "1"]
[White "Malev212"]
[Black "kai_nov"]
[Result "1-0"]
[WhiteElo "2644"]
[BlackElo "2355"]
[TimeControl "180+1"]
[EndTime "14:07:19 PST"]
[Termination "Malev212 won on time"]

1. e4 {[%clk 0:02:59.6]} 1... c5 {[%clk 0:02:57.4]} 2. Nf3 {[%clk 0:02:59.1]}
2... Nc6 {[%clk 0:02:57.7]} 3. d4 {[%clk 0:02:59]} 3... cxd4 {[%clk 0:02:58.6]}
4. Nxd4 {[%clk 0:02:58.5]} 4... Nf6 {[%clk 0:02:57.9]} 5. Nc3 {[%clk 0:02:57.4]}
5... e5 {[%clk 0:02:57.9]} 6. Ndb5 {[%clk 0:02:56.1]} 6... d6 {[%clk 0:02:58.1]}
7. Bg5 {[%clk 0:02:55.7]} 7... a6 {[%clk 0:02:57.9]} 8. Na3 {[%clk 0:02:55.3]}
8... b5 {[%clk 0:02:58.4]} 9. Nd5 {[%clk 0:02:54.8]} 9... Be7 {[%clk 0:02:58.6]}
10. Bxf6 {[%clk 0:02:54.7]} 10... Bxf6 {[%clk 0:02:59.5]} 11. c3 {[%clk
0:02:54.2]} 11... O-O {[%clk 0:02:59.3]} 12. Nc2 {[%clk 0:02:53.3]} 12... Bg5
{[%clk 0:02:59.5]} 13. h4 {[%clk 0:02:51.8]} 13... Bh6 {[%clk 0:02:57.5]} 14. g3
{[%clk 0:02:50.2]} 14... Ne7 {[%clk 0:02:55.4]} 15. Ncb4 {[%clk 0:02:45]} 15...
a5 {[%clk 0:02:14.6]} 16. Nxe7+ {[%clk 0:02:41.7]} 16... Qxe7 {[%clk 0:02:15.5]}
17. Nd5 {[%clk 0:02:40.6]} 17... Qb7 {[%clk 0:02:16.1]} 18. Bh3 {[%clk
0:02:33.3]} 18... Be6 {[%clk 0:02:08.7]} 19. a3 {[%clk 0:02:20.2]} 19... Bxd5
{[%clk 0:02:07.7]} 20. Qxd5 {[%clk 0:02:19.2]} 20... Qxd5 {[%clk 0:02:07.7]} 21.
exd5 {[%clk 0:02:18.8]} 21... f5 {[%clk 0:02:07.8]} 22. Ke2 {[%clk 0:02:06.6]}
22... g6 {[%clk 0:01:58.9]} 23. Rhb1 {[%clk 0:01:55.8]} 23... Kf7 {[%clk
0:01:21.7]} 24. Bf1 {[%clk 0:01:51.9]} 24... Rfb8 {[%clk 0:01:18.5]} 25. Kd1
{[%clk 0:01:45.9]} 25... e4 {[%clk 0:01:15.2]} 26. a4 {[%clk 0:01:36.5]} 26...
b4 {[%clk 0:01:13.1]} 27. Bb5 {[%clk 0:01:36.1]} 27... bxc3 {[%clk 0:01:08.4]}
28. bxc3 {[%clk 0:01:37]} 28... Bg7 {[%clk 0:01:07.8]} 29. Kc2 {[%clk
0:01:33.8]} 29... Bf6 {[%clk 0:01:08]} 30. Bc6 {[%clk 0:01:31.2]} 30... Rxb1
{[%clk 0:01:06.9]} 31. Rxb1 {[%clk 0:01:30.8]} 31... Ra7 {[%clk 0:01:03]} 32.
Rb8 {[%clk 0:01:30.2]} 32... Kg7 {[%clk 0:00:38.2]} 33. Re8 {[%clk 0:01:25.1]}
33... Kf7 {[%clk 0:00:34.6]} 34. Rc8 {[%clk 0:01:17.3]} 34... Kg7 {[%clk
0:00:33.3]} 35. Bb5 {[%clk 0:01:15.7]} 35... Kf7 {[%clk 0:00:31]} 36. Rc6 {[%clk
0:01:12.7]} 36... Be5 {[%clk 0:00:28]} 37. Kd2 {[%clk 0:01:11]} 37... Kf6 {[%clk
0:00:16.8]} 38. Ke3 {[%clk 0:01:10.4]} 38... Ke7 {[%clk 0:00:11.9]} 39. Rc8
{[%clk 0:01:07.8]} 39... Kf7 {[%clk 0:00:10.6]} 40. c4 {[%clk 0:01:07]} 40... h6
{[%clk 0:00:07.3]} 41. g4 {[%clk 0:00:48.4]} 41... fxg4 {[%clk 0:00:04.5]} 42.
Kxe4 {[%clk 0:00:47.3]} 42... h5 {[%clk 0:00:04.6]} 43. c5 {[%clk 0:00:43]}
43... g3 {[%clk 0:00:04.8]} 44. fxg3 {[%clk 0:00:39.7]} 44... Bxg3 {[%clk
0:00:05.7]} 45. c6 {[%clk 0:00:38.7]} 45... Bxh4 {[%clk 0:00:05.7]} 46. c7
{[%clk 0:00:35.6]} 1-0

[Event "Late-Titled-Tuesday-Blitz-March-05-2024"]
[Site "Chess.com"]
[Date "2024.03.05"]
[Round "1"]
[White "OPQRC"]
[Black "HansOnTwitch"]
[Result "1-0"]
[WhiteElo "2545"]
[BlackElo "3111"]
[TimeControl "180+1"]
[EndTime "14:07:23 PST"]
[Termination "OPQRC won on time"]

1. e4 {[%clk 0:03:00.9]} 1... c5 {[%clk 0:02:57.4]} 2. Nf3 {[%clk 0:03:01.1]}
2... d6 {[%clk 0:02:57.2]} 3. d4 {[%clk 0:03:01.7]} 3... cxd4 {[%clk 0:02:57.9]}
4. Nxd4 {[%clk 0:03:02.6]} 4... Nf6 {[%clk 0:02:57.9]} 5. Nc3 {[%clk 0:03:03.3]}
5... a6 {[%clk 0:02:58.4]} 6. Bg5 {[%clk 0:03:03.8]} 6... e6 {[%clk 0:02:54.8]}
7. f4 {[%clk 0:03:04.2]} 7... Qb6 {[%clk 0:02:54.1]} 8. Qd2 {[%clk 0:03:04.3]}
8... Nc6 {[%clk 0:02:54.7]} 9. Bxf6 {[%clk 0:03:01.2]} 9... gxf6 {[%clk
0:02:54.5]} 10. Nb3 {[%clk 0:03:01.3]} 10... h5 {[%clk 0:02:46.9]} 11. O-O-O
{[%clk 0:02:58.3]} 11... Bd7 {[%clk 0:02:46.8]} 12. Kb1 {[%clk 0:02:57.6]} 12...
O-O-O {[%clk 0:02:46.3]} 13. g3 {[%clk 0:02:46]} 13... h4 {[%clk 0:02:46.1]} 14.
Bh3 {[%clk 0:02:43.7]} 14... Kb8 {[%clk 0:02:44]} 15. f5 {[%clk 0:02:34.6]}
15... Ne5 {[%clk 0:02:43.9]} 16. Qe2 {[%clk 0:02:28.2]} 16... Rc8 {[%clk
0:02:34.1]} 17. Qe1 {[%clk 0:01:55.1]} 17... Bh6 {[%clk 0:02:15.3]} 18. gxh4
{[%clk 0:01:51.6]} 18... Be3 {[%clk 0:02:05.4]} 19. Rf1 {[%clk 0:01:45.4]} 19...
Rh6 {[%clk 0:01:59.4]} 20. fxe6 {[%clk 0:01:28.8]} 20... fxe6 {[%clk 0:02:00.3]}
21. Qg3 {[%clk 0:01:07.9]} 21... Rg6 {[%clk 0:01:55.1]} 22. Qe1 {[%clk
0:01:05.6]} 22... Rh6 {[%clk 0:01:55.4]} 23. Qg3 {[%clk 0:01:05.2]} 23... Rg6
{[%clk 0:01:40.8]} 24. Qe1 {[%clk 0:01:04.4]} 24... Rh8 {[%clk 0:01:41]} 25. a4
{[%clk 0:00:55.8]} 25... Bh6 {[%clk 0:01:11.1]} 26. a5 {[%clk 0:00:54.4]} 26...
Qc7 {[%clk 0:01:11.2]} 27. Nd4 {[%clk 0:00:49.7]} 27... Re8 {[%clk 0:01:08]} 28.
h5 {[%clk 0:00:39.1]} 28... Rg5 {[%clk 0:00:58.6]} 29. Rxf6 {[%clk 0:00:37.7]}
29... Rxh5 {[%clk 0:00:56.3]} 30. Bxe6 {[%clk 0:00:31.7]} 30... Rxh2 {[%clk
0:00:38.3]} 31. Nd5 {[%clk 0:00:27.9]} 31... Qc5 {[%clk 0:00:32.6]} 32. b4
{[%clk 0:00:23.1]} 32... Qc8 {[%clk 0:00:26.2]} 33. Nb6 {[%clk 0:00:21]} 33...
Qc7 {[%clk 0:00:21.7]} 34. Bxd7 {[%clk 0:00:18.6]} 34... Nxd7 {[%clk 0:00:21.8]}
35. Rf7 {[%clk 0:00:18.8]} 35... Rd8 {[%clk 0:00:20.5]} 36. c3 {[%clk
0:00:13.7]} 36... Rh3 {[%clk 0:00:11.2]} 37. Ne6 {[%clk 0:00:11.6]} 37... Qc6
{[%clk 0:00:02.7]} 38. Nxd8 {[%clk 0:00:11.6]} 38... Qb5 {[%clk 0:00:03.5]} 39.
Rxd7 {[%clk 0:00:10.6]} 1-0

[Event "Late-Titled-Tuesday-Blitz-March-05-2024"]
[Site "Chess.com"]
[Date "2024.03.05"]
[Round "1"]
[White "zverr1"]
[Black "GAO"]
[Result "1-0"]
[WhiteElo "2596"]
[BlackElo "2281"]
[TimeControl "180+1"]
[EndTime "14:07:24 PST"]
[Termination "zverr1 won by resignation"]

1. e4 {[%clk 0:03:00.9]} 1... c5 {[%clk 0:02:59.6]} 2. Nf3 {[%clk 0:02:57.5]}
2... Nc6 {[%clk 0:03:00.1]} 3. d4 {[%clk 0:02:57.3]} 3... cxd4 {[%clk 0:03:01]}
4. Nxd4 {[%clk 0:02:57.9]} 4... g6 {[%clk 0:03:01.7]} 5. c4 {[%clk 0:02:57.9]}
5... Bg7 {[%clk 0:03:01.6]} 6. Be3 {[%clk 0:02:58.4]} 6... Qb6 {[%clk
0:03:01.6]} 7. Nb5 {[%clk 0:02:42]} 7... Qd8 {[%clk 0:03:01.1]} 8. N1c3 {[%clk
0:02:37.7]} 8... a6 {[%clk 0:02:58.9]} 9. Nd4 {[%clk 0:02:37.1]} 9... Nf6 {[%clk
0:02:57.8]} 10. Be2 {[%clk 0:02:36.5]} 10... d6 {[%clk 0:02:57.9]} 11. O-O
{[%clk 0:02:35.6]} 11... O-O {[%clk 0:02:58.4]} 12. h3 {[%clk 0:02:36]} 12...
Be6 {[%clk 0:02:56.6]} 13. Nxe6 {[%clk 0:02:11.9]} 13... fxe6 {[%clk 0:02:57.5]}
14. Rc1 {[%clk 0:01:59.7]} 14... Rc8 {[%clk 0:02:55.8]} 15. Bg4 {[%clk
0:01:56.5]} 15... Nxg4 {[%clk 0:02:06.4]} 16. Qxg4 {[%clk 0:01:57.4]} 16... Qd7
{[%clk 0:02:05.8]} 17. b3 {[%clk 0:01:53.7]} 17... Ne5 {[%clk 0:01:56.2]} 18.
Qe2 {[%clk 0:01:53.3]} 18... Qc7 {[%clk 0:01:48.2]} 19. f4 {[%clk 0:01:49.3]}
19... Nc6 {[%clk 0:01:48.2]} 20. Qg4 {[%clk 0:01:46.7]} 20... Nd4 {[%clk
0:01:46.5]} 21. Kh1 {[%clk 0:01:36.9]} 21... Qd7 {[%clk 0:01:28.2]} 22. Rfd1
{[%clk 0:01:35.3]} 22... Nc6 {[%clk 0:01:23.2]} 23. e5 {[%clk 0:01:20.4]} 23...
b5 {[%clk 0:01:12.6]} 24. Ne4 {[%clk 0:00:55.7]} 24... Rf5 {[%clk 0:01:04.6]}
25. cxb5 {[%clk 0:00:45]} 25... axb5 {[%clk 0:01:04]} 26. exd6 {[%clk
0:00:44.9]} 26... exd6 {[%clk 0:00:57.7]} 27. Nxd6 {[%clk 0:00:42.4]} 27... Rff8
{[%clk 0:00:29.1]} 28. Nxc8 {[%clk 0:00:39]} 28... Qxc8 {[%clk 0:00:30]} 29. Rd6
{[%clk 0:00:33.9]} 29... Qa8 {[%clk 0:00:22]} 30. Qxe6+ {[%clk 0:00:32.3]} 30...
Kh8 {[%clk 0:00:22.5]} 31. Rdxc6 {[%clk 0:00:31.6]} 31... Qxa2 {[%clk 0:00:23]}
32. Rc8 {[%clk 0:00:30.2]} 32... Qb2 {[%clk 0:00:19.7]} 33. Qf7 {[%clk
0:00:19.9]} 33... Qa3 {[%clk 0:00:14.3]} 34. Rxf8+ {[%clk 0:00:08.7]} 34... Qxf8
{[%clk 0:00:12.9]} 35. Qxf8+ {[%clk 0:00:08.5]} 35... Bxf8 {[%clk 0:00:13.8]}
36. Rc8 {[%clk 0:00:08.6]} 36... Kg8 {[%clk 0:00:14.7]} 37. Bc5 {[%clk
0:00:08.8]} 37... Kf7 {[%clk 0:00:14.5]} 38. Rxf8+ {[%clk 0:00:09.5]} 38... Ke6
{[%clk 0:00:14.3]} 39. Rh8 {[%clk 0:00:10]} 39... Kd5 {[%clk 0:00:15.2]} 40.
Rxh7 {[%clk 0:00:10.7]} 40... Kxc5 {[%clk 0:00:15.7]} 41. Rg7 {[%clk 0:00:11.6]}
41... g5 {[%clk 0:00:15.4]} 42. Rg6 {[%clk 0:00:12.5]} 42... gxf4 {[%clk
0:00:15.1]} 43. Rf6 {[%clk 0:00:13.3]} 43... Kb4 {[%clk 0:00:15]} 44. Rxf4+
{[%clk 0:00:13.5]} 44... Kxb3 {[%clk 0:00:15.9]} 45. h4 {[%clk 0:00:14.1]} 45...
b4 {[%clk 0:00:16.8]} 46. Rxb4+ {[%clk 0:00:14.1]} 46... Kxb4 {[%clk 0:00:17.6]}
47. h5 {[%clk 0:00:15]} 47... Kc5 {[%clk 0:00:18.3]} 48. h6 {[%clk 0:00:15.9]}
48... Kd6 {[%clk 0:00:19.2]} 49. h7 {[%clk 0:00:16.8]} 49... Ke7 {[%clk
0:00:20.1]} 50. h8=Q {[%clk 0:00:17.6]} 50... Kf7 {[%clk 0:00:21]} 51. Qh6
{[%clk 0:00:17]} 1-0